[Event "73rd ARM-chW Highest League 2018"]
[Site "Yerevan"]
[Date "2018.01.18"]
[Round "7"]
[White "Mkrtchyan, Mariam"]
[Black "Khachatryan, Anna"]
[Result "1/2-1/2"]
[ECO "D78"]
[WhiteElo "1834"]
[BlackElo "2004"]
[Annotator "NA RC"]
[PlyCount "62"]
[EventDate "2018.??.??"]
[EventType "tourn"]
[EventCountry "ARM"]
[SourceTitle "playchess.com"]
[Source "ChessBase"]
[SourceQuality "1"]
[TimeControl "40/5400+30:1800+30"]

1. d4 {[%emt 0:00:00]} d5 {[%emt 0:00:55]} 2. Nf3 {[%emt 0:00:00]} Nf6 {[%emt 0:00:10]} 3. g3 {[%emt 0:00:45]} g6 {[%emt 0:00:08]} 4. Bg2 {[%emt 0:00:08]} Bg7 {[%emt 0:00:05]} 5. O-O {[%emt 0:00:07]} O-O {[%emt 0:00:04]} 6. c4 {[%emt 0:01:02]} c6 {[%emt 0:00:14]} 7. Ne5 {[%emt 0:03:13]} Be6 {[%emt 0:06:30] LiveBook: 14 Games} 8. Nd2 {[%emt 0:06:07] D78: Fianchetto Grünfeld: 6 0-0 c6} Ng4 $146 {[%emt 0:08:28]} ({Predecessor:} 8... Nbd7 9. cxd5 cxd5 {½-½ (9) Kurajica,B (2555)-Neverov,V (2587) Ljubljana 2002}) 9. cxd5 {[%emt 0:06:42]} cxd5 {[%emt 0:00:35]} 10. Nef3 {[%emt 0:00:52]} Nc6 {[%emt 0:03:52]} 11. Nb3 {[%emt 0:00:22]} b6 {[%emt 0:14:39]} 12. Bf4 {[%emt 0:09:09]} Rc8 {[%emt 0:11:15]} 13. Rc1 {[%emt 0:05:10]} Nf6 {[%emt 0:09:28]} 14. Ne5 {[%emt 0:04:50]} Nxe5 {[%emt 0:00:24]} 15. dxe5 {[%emt 0:14:23]} Rxc1 {[%emt 0:00:21]} 16. Bxc1 {[%emt 0:05:36]} Ne4 {[%emt 0:16:02]} 17. Nd4 {[%emt 0:05:28]} Qc8 {[%emt 0:09:16]} ({Black should play} 17... Bxe5 $11 18. Nxe6 fxe6) 18. f3 {[%emt 0:09:41]} Nc5 {[%emt 0:02:24]} 19. b4 {[%emt 0:01:35]} Nb7 {[%emt 0:07:23]} (19... Na6 $142) 20. Nxe6 {[%emt 0:05:18]} Qxe6 {[%emt 0:00:22]} 21. f4 {[%emt 0:00:01]} Rd8 {[%emt 0:00:48]} 22. Qb3 {[%emt 0:02:48]} (22. Qd3 $142) 22... Qc6 {[%emt 0:02:14]} 23. Bb2 {[%emt 0:02:33]} e6 {[%emt 0:01:42]} 24. Rc1 {[%emt 0:00:46]} Qb5 {[%emt 0:00:22]} 25. e3 {[%emt 0:03:40]} Bf8 {[%emt 0:01:48]} 26. Rc7 {[%emt 0:02:26]} Rb8 {[%emt 0:00:11]} 27. Ba3 $11 {[%emt 0:01:42]} Na5 {[%emt 0:02:50]} 28. Qc3 {[%emt 0:05:42]} Nc4 {[%emt 0:00:04]} 29. Bf1 {[%emt 0:00:10]} a5 {[%emt 0:00:09]} 30. Bxc4 {[%emt 0:01:10]} dxc4 {[%emt 0:00:02]} 31. Rxc4 {[%emt 0:00:49]} Qa4 {[%emt 0:00:11]} 1/2-1/2

[Event "73rd ARM-chW Highest League 2018"]
[Site "Yerevan"]
[Date "2018.01.19"]
[Round "8"]
[White "Gevorgyan, Maria"]
[Black "Galojan, Lilit"]
[Result "1-0"]
[ECO "B35"]
[WhiteElo "2258"]
[BlackElo "2300"]
[Annotator "NA"]
[PlyCount "69"]
[EventDate "2018.??.??"]
[EventType "tourn"]
[EventCountry "ARM"]
[SourceTitle "playchess.com"]
[Source "ChessBase"]
[SourceQuality "1"]
[TimeControl "40/5400+30:1800+30"]

1. e4 {[%emt 0:00:52]} c5 {[%emt 0:00:06]} 2. Nf3 {[%emt 0:00:21]} Nc6 {[%emt 0:00:05]} 3. Nc3 {[%emt 0:00:00]} g6 {[%emt 0:00:00]} 4. d4 {[%emt 0:00:31]} cxd4 {[%emt 0:00:10]} 5. Nxd4 {[%emt 0:00:04]} Bg7 {[%emt 0:00:04]} 6. Be3 {[%emt 0:00:04]} Nf6 {[%emt 0:00:15]} 7. Bc4 {[%emt 0:00:13]} O-O {[%emt 0:00:18]} 8. f3 {[%emt 0:00:08]} Qb6 {[%emt 0:02:42]} 9. a3 {[%emt 0:47:43]} Qc5 {[%emt 1:07:48]} 10. Bb3 {[%emt 0:05:09]} Qa5 {[%emt 0:06:31]} 11. Qd2 {[%emt 0:00:37]} e6 {[%emt 0:00:56]} 12. O-O-O {[%emt 0:05:13]} a6 {[%emt 0:01:57]} 13. g4 {[%emt 0:00:21]} b5 {[%emt 0:06:18]} 14. Nxc6 {[%emt 0:04:17]} dxc6 {[%emt 0:00:04]} 15. h4 {[%emt 0:02:59]} Nd7 {[%emt 0:00:46]} 16. h5 {[%emt 0:01:28]} Bxc3 {[%emt 0:07:31]} 17. bxc3 {[%emt 0:08:29]} Qxa3+ {[%emt 0:00:02]} 18. Kb1 {[%emt 0:00:05]} Ne5 {[%emt 0:03:15]} 19. Qh2 {[%emt 0:00:51]} Nc4 {[%emt 0:00:26]} 20. Bxc4 {[%emt 0:03:38]} bxc4 {[%emt 0:00:02]} 21. hxg6 {[%emt 0:00:06]} h5 {[%emt 0:00:18]} 22. Bc1 {[%emt 0:00:47]} Qa5 {[%emt 0:00:34]} 23. Qxh5 {[%emt 0:04:33]} Rb8+ {[%emt 0:00:21]} 24. Bb2 {[%emt 0:00:05]} Qxh5 {[%emt 0:00:21]} 25. gxh5 {[%emt 0:02:00]} fxg6 {[%emt 0:00:02]} 26. Rdg1 {[%emt 0:00:05]} Rb7 {[%emt 0:01:22]} 27. Rxg6+ {[%emt 0:01:36]} Rg7 {[%emt 0:00:23]} 28. Ba3 {[%emt 0:01:08]} Rxf3 {[%emt 0:00:59]} 29. Rd1 {[%emt 0:00:23]} Bb7 {[%emt 0:00:21]} 30. Rxe6 {[%emt 0:04:56]} Rgf7 {[%emt 0:00:59]} 31. Rd8+ {[%emt 0:01:18]} Kh7 {[%emt 0:00:06]} 32. Bc5 {[%emt 0:00:19]} a5 {[%emt 0:00:44]} 33. Bd4 {[%emt 0:00:19]} Rf8 {[%emt 0:00:09]} 34. Re7+ {[%emt 0:00:09]} R3f7 {[%emt 0:00:08]} 35. Rxf7+ {[%emt 0:00:06]} 1-0

[Event "73rd ARM-chW Highest League 2018"]
[Site "Yerevan"]
[Date "2018.01.19"]
[Round "8"]
[White "Kursova, Maria"]
[Black "Sargsyan, Anna M."]
[Result "1-0"]
[ECO "D44"]
[WhiteElo "2249"]
[BlackElo "2214"]
[Annotator "NA"]
[PlyCount "105"]
[EventDate "2018.??.??"]
[EventType "tourn"]
[EventCountry "ARM"]
[SourceTitle "playchess.com"]
[Source "ChessBase"]
[SourceQuality "1"]
[TimeControl "40/5400+30:1800+30"]

1. d4 {[%emt 0:00:00]} d5 {[%emt 0:00:07]} 2. Nf3 {[%emt 0:00:00]} Nf6 {[%emt 0:00:08]} 3. c4 {[%emt 0:00:03]} c6 {[%emt 0:00:06]} 4. Nc3 {[%emt 0:00:15]} e6 {[%emt 0:00:05]} 5. Bg5 {[%emt 0:00:15]} dxc4 {[%emt 0:00:05]} 6. a4 {[%emt 0:00:09]} Bb4 {[%emt 0:00:47]} 7. e4 {[%emt 0:00:28]} Bxc3+ {[%emt 0:01:05]} 8. bxc3 {[%emt 0:00:18]} Qa5 {[%emt 0:00:03]} 9. e5 {[%emt 0:05:44]} Ne4 {[%emt 0:00:12]} 10. Bd2 {[%emt 0:02:06]} Qd5 {[%emt 0:00:18]} 11. Qc2 {[%emt 0:07:54]} b5 {[%emt 0:09:49]} 12. Be2 {[%emt 0:22:44]} f5 {[%emt 0:21:30]} 13. exf6 {[%emt 0:21:02]} gxf6 {[%emt 0:00:32]} 14. Bf4 {[%emt 0:08:09]} Nd7 {[%emt 0:02:43]} 15. Nh4 {[%emt 0:06:17]} f5 {[%emt 0:09:32]} 16. Bh5+ {[%emt 0:06:44]} Ke7 {[%emt 0:00:47]} 17. O-O {[%emt 0:01:10]} Rg8 {[%emt 0:01:56]} 18. Bf3 {[%emt 0:00:31]} Ndf6 {[%emt 0:03:22]} 19. Rfe1 {[%emt 0:01:39]} Bb7 {[%emt 0:04:33]} 20. Be5 {[%emt 0:01:37]} c5 {[%emt 0:01:49]} 21. Rad1 {[%emt 0:06:24]} Ng4 {[%emt 0:06:38]} 22. Bg3 {[%emt 0:00:16]} Rad8 {[%emt 0:02:13]} 23. axb5 {[%emt 0:01:27]} cxd4 {[%emt 0:01:31]} 24. Rxd4 {[%emt 0:00:04]} Qxb5 {[%emt 0:00:30]} 25. Bxg4 {[%emt 0:04:50]} Rxd4 {[%emt 0:11:33]} 26. cxd4 {[%emt 0:00:03]} Qb3 {[%emt 0:00:22]} 27. Bd1 {[%emt 0:00:46]} Qb4 {[%emt 0:00:30]} 28. Re3 {[%emt 0:02:04]} c3 {[%emt 0:00:05]} 29. Nf3 {[%emt 0:00:25]} Bd5 {[%emt 0:00:27]} 30. Be5 {[%emt 0:00:31]} a5 {[%emt 0:01:00]} 31. Ne1 {[%emt 0:00:18]} a4 {[%emt 0:02:57]} 32. Qxa4 {[%emt 0:00:30]} Qxa4 {[%emt 0:00:33]} 33. Bxa4 {[%emt 0:00:01]} Ra8 {[%emt 0:00:05]} 34. Bc2 {[%emt 0:00:24]} Ra1 {[%emt 0:00:03]} 35. f3 {[%emt 0:00:40]} Nd2 {[%emt 0:00:24]} 36. Kf2 {[%emt 0:00:16]} Ra3 {[%emt 0:00:09]} 37. Bf4 {[%emt 0:00:56]} Kd7 {[%emt 0:00:47]} 38. g4 {[%emt 0:00:18]} fxg4 {[%emt 0:00:37]} 39. fxg4 {[%emt 0:00:03]} Ra2 {[%emt 0:01:09]} 40. Kg1 {[%emt 0:00:00]} Nf3+ {[%emt 0:02:36]} 41. Nxf3 {[%emt 0:05:23]} Rxc2 {[%emt 0:00:05]} 42. Ne1 {[%emt 0:01:48]} Rd2 {[%emt 0:01:41]} 43. Rxc3 {[%emt 0:01:53]} Rxd4 {[%emt 0:00:04]} 44. Bg3 {[%emt 0:01:15]} Rxg4 {[%emt 0:02:17]} 45. Rc7+ {[%emt 0:00:17]} Ke8 {[%emt 0:00:04]} 46. Rxh7 {[%emt 0:00:06]} Rd4 {[%emt 0:00:23]} 47. Kf2 {[%emt 0:00:50]} Kf8 {[%emt 0:00:31]} 48. Nf3 {[%emt 0:01:29]} Ra4 {[%emt 0:00:39]} 49. Ne5 {[%emt 0:00:38]} Kg8 {[%emt 0:00:58]} 50. Rc7 {[%emt 0:00:30]} Rb4 {[%emt 0:03:04]} 51. Ng6 {[%emt 0:01:24]} Rb7 {[%emt 0:01:39]} 52. Ne7+ {[%emt 0:02:24]} Kf8 {[%emt 0:00:08]} 53. Nxd5 {[%emt 0:00:08]} 1-0

[Event "73rd ARM-chW Highest League 2018"]
[Site "Yerevan"]
[Date "2018.01.19"]
[Round "8"]
[White "Khachatryan, Anna"]
[Black "Asatryan, Sona"]
[Result "1/2-1/2"]
[ECO "A05"]
[WhiteElo "2004"]
[BlackElo "2111"]
[Annotator "NA"]
[PlyCount "86"]
[EventDate "2018.??.??"]
[EventType "tourn"]
[EventCountry "ARM"]
[SourceTitle "playchess.com"]
[Source "ChessBase"]
[SourceQuality "1"]
[TimeControl "40/5400+30:1800+30"]

1. Nf3 {[%emt 0:00:00]} Nf6 {[%emt 0:00:08]} 2. g3 {[%emt 0:00:00]} e6 {[%emt 0:00:28]} 3. Bg2 {[%emt 0:00:06]} d5 {[%emt 0:00:10]} 4. O-O {[%emt 0:00:20]} Nbd7 {[%emt 0:00:05]} 5. d3 {[%emt 0:00:23]} c5 {[%emt 0:02:06]} 6. Nbd2 {[%emt 0:01:28]} Be7 {[%emt 0:01:43]} 7. e4 {[%emt 0:00:36]} O-O {[%emt 0:03:43]} 8. e5 {[%emt 0:02:46]} Ne8 {[%emt 0:01:27]} 9. Re1 {[%emt 0:00:53]} Nc7 {[%emt 0:01:46]} 10. Nf1 {[%emt 0:05:26]} b5 {[%emt 0:05:18]} 11. h4 {[%emt 0:01:04]} Rb8 {[%emt 0:10:02]} 12. Bf4 {[%emt 0:03:01]} Rb6 {[%emt 0:05:20]} 13. N1h2 {[%emt 0:05:02]} f5 {[%emt 0:07:42]} 14. exf6 {[%emt 0:13:21]} gxf6 {[%emt 0:07:16]} 15. Nd2 {[%emt 0:19:04]} e5 {[%emt 0:06:27]} 16. Bh6 {[%emt 0:00:14]} Rf7 {[%emt 0:01:48]} 17. Qh5 {[%emt 0:07:12]} Bf8 {[%emt 0:04:38]} 18. Ng4 {[%emt 0:02:36]} Re7 {[%emt 0:05:25]} 19. f4 {[%emt 0:07:55]} Qe8 {[%emt 0:03:35]} 20. Qxe8 {[%emt 0:01:57]} Rxe8 {[%emt 0:00:04]} 21. fxe5 {[%emt 0:02:41]} fxe5 {[%emt 0:08:07]} 22. Bxf8 {[%emt 0:00:39]} Kxf8 {[%emt 0:00:23]} 23. Nf3 {[%emt 0:03:00]} Rg6 {[%emt 0:02:32]} 24. Ngxe5 {[%emt 0:04:03]} Nxe5 {[%emt 0:02:00]} 25. Nxe5 {[%emt 0:00:26]} Rxg3 {[%emt 0:00:58]} 26. Kh2 {[%emt 0:00:33]} Rg7 {[%emt 0:00:48]} 27. Rf1+ {[%emt 0:01:45]} Kg8 {[%emt 0:02:38]} 28. Rae1 {[%emt 0:01:38]} Rge7 {[%emt 0:01:44]} 29. Nf3 {[%emt 0:00:11]} d4 {[%emt 0:03:58]} 30. Rxe7 {[%emt 0:00:19]} Rxe7 {[%emt 0:00:05]} 31. Re1 {[%emt 0:00:55]} Rxe1 32. Nxe1 {[%emt 0:00:01]} Be6 {[%emt 0:01:21]} 33. a3 {[%emt 0:00:22]} Nd5 {[%emt 0:00:55]} 34. Bxd5 {[%emt 0:00:30]} Bxd5 {[%emt 0:00:06]} 35. Kg3 {[%emt 0:00:14]} Kf7 {[%emt 0:00:25]} 36. Kf4 {[%emt 0:01:30]} Kf6 {[%emt 0:00:46]} 37. Nf3 {[%emt 0:02:43]} Bxf3 {[%emt 0:02:00]} 38. Kxf3 {[%emt 0:00:01]} Kf5 {[%emt 0:00:10]} 39. Kg3 {[%emt 0:00:09]} a5 {[%emt 0:01:17]} 40. b3 {[%emt 0:00:00]} h5 {[%emt 0:03:49]} 41. Kf3 {[%emt 0:04:17]} Ke5 {[%emt 0:00:13]} 42. Kg3 {[%emt 0:01:00]} a4 {[%emt 0:01:01]} 43. bxa4 {[%emt 0:00:35]} bxa4 {[%emt 0:00:08]} 1/2-1/2

[Event "73rd ARM-chW Highest League 2018"]
[Site "Yerevan"]
[Date "2018.01.19"]
[Round "8"]
[White "Mkrtchyan, Mariam"]
[Black "Ghukasyan, Siranush"]
[Result "0-1"]
[ECO "D30"]
[WhiteElo "1834"]
[BlackElo "2166"]
[Annotator "NA"]
[PlyCount "54"]
[EventDate "2018.??.??"]
[EventType "tourn"]
[EventCountry "ARM"]
[SourceTitle "playchess.com"]
[Source "ChessBase"]
[SourceQuality "1"]
[TimeControl "40/5400+30:1800+30"]

1. d4 {[%emt 0:00:00]} d5 {[%emt 0:00:03]} 2. c4 {[%emt 0:00:00]} e6 {[%emt 0:00:04]} 3. Nf3 {[%emt 0:00:00]} Nf6 {[%emt 0:00:05]} 4. g3 {[%emt 0:00:10]} Bb4+ {[%emt 0:00:05]} 5. Bd2 {[%emt 0:00:20]} Bd6 {[%emt 0:00:07]} 6. Bg2 {[%emt 0:00:14]} c6 {[%emt 0:00:07]} 7. Qc2 {[%emt 0:00:14]} Nbd7 {[%emt 0:00:14]} 8. O-O {[%emt 0:00:26]} O-O {[%emt 0:00:05]} 9. Bg5 {[%emt 0:00:26]} h6 {[%emt 0:00:52]} 10. Bxf6 {[%emt 0:00:11]} Qxf6 {[%emt 0:00:55]} 11. Nbd2 {[%emt 0:01:10]} Bc7 {[%emt 0:07:23]} 12. e4 {[%emt 0:01:39]} dxe4 {[%emt 0:07:32]} 13. Nxe4 {[%emt 0:00:19]} Qe7 {[%emt 0:00:05]} 14. Rad1 {[%emt 0:07:24]} f5 {[%emt 0:06:43]} 15. Nc3 {[%emt 0:03:16]} e5 {[%emt 0:00:12]} 16. Rfe1 {[%emt 0:16:55]} e4 {[%emt 0:02:31]} 17. Nd2 {[%emt 0:07:35]} Qf7 {[%emt 0:04:15]} 18. Qb3 {[%emt 0:08:32]} c5 {[%emt 0:04:27]} 19. d5 {[%emt 0:08:40]} Ne5 {[%emt 0:04:35]} 20. f3 {[%emt 0:02:41]} Nd3 {[%emt 0:03:47]} 21. Re2 {[%emt 0:01:54]} Be5 {[%emt 0:00:22]} 22. fxe4 {[%emt 0:10:05]} Bd4+ {[%emt 0:00:54]} 23. Kh1 {[%emt 0:00:13]} f4 {[%emt 0:07:09]} 24. Rf1 {[%emt 0:05:36]} Bg4 {[%emt 0:03:58]} 25. Bf3 {[%emt 0:01:52]} fxg3 {[%emt 0:08:47]} 26. hxg3 {[%emt 0:06:25]} Bh3 {[%emt 0:03:43]} 27. Qd1 {[%emt 0:08:33]} Nxb2 {[%emt 0:02:11]} 0-1

[Event "73rd ARM-chW Highest League 2018"]
[Site "Yerevan"]
[Date "2018.01.19"]
[Round "8"]
[White "Arakelyan, Nare"]
[Black "Gaboyan, Susanna"]
[Result "0-1"]
[ECO "B24"]
[WhiteElo "1747"]
[BlackElo "2168"]
[Annotator "NA"]
[PlyCount "106"]
[EventDate "2018.??.??"]
[EventType "tourn"]
[EventCountry "ARM"]
[SourceTitle "playchess.com"]
[Source "ChessBase"]
[SourceQuality "1"]
[TimeControl "40/5400+30:1800+30"]

1. e4 {[%emt 0:00:00]} c5 {[%emt 0:01:29]} 2. Nc3 {[%emt 0:00:00]} Nc6 {[%emt 0:00:12]} 3. Bb5 {[%emt 0:00:04]} g6 {[%emt 0:00:06]} 4. Bxc6 {[%emt 0:00:12]} dxc6 {[%emt 0:00:08]} 5. d3 {[%emt 0:00:04]} e5 {[%emt 0:02:45]} 6. h3 {[%emt 0:03:08]} f6 {[%emt 0:01:38]} 7. Be3 {[%emt 0:01:09]} Nh6 {[%emt 0:00:18]} 8. Qd2 {[%emt 0:00:53]} Nf7 {[%emt 0:01:33]} 9. Nge2 {[%emt 0:00:46]} g5 {[%emt 0:02:29]} 10. Ng3 {[%emt 0:05:11]} Be6 {[%emt 0:01:55]} 11. Qe2 {[%emt 0:02:47]} Rg8 {[%emt 0:12:52]} 12. O-O-O {[%emt 0:04:46]} Qd7 {[%emt 0:00:51]} 13. Nh5 {[%emt 0:03:19]} Rg6 {[%emt 0:01:05]} 14. g4 {[%emt 0:03:37]} O-O-O {[%emt 0:02:40]} 15. Kb1 {[%emt 0:02:08]} b6 {[%emt 0:03:58]} 16. Na4 {[%emt 0:04:12]} Nd6 {[%emt 0:03:06]} 17. Ng3 {[%emt 0:05:39]} Nb5 {[%emt 0:03:12]} 18. Rd2 {[%emt 0:13:35]} Qf7 {[%emt 0:02:09]} 19. b3 {[%emt 0:00:39]} Rg8 {[%emt 0:06:21]} 20. Ka1 {[%emt 0:06:19]} Nd4 {[%emt 0:03:52]} 21. Qd1 {[%emt 0:02:47]} Qb7 {[%emt 0:03:13]} 22. c3 {[%emt 0:02:16]} Qa6 {[%emt 0:03:08]} 23. cxd4 {[%emt 0:09:10]} exd4 {[%emt 0:00:20]} 24. Bxg5 {[%emt 0:00:23]} fxg5 {[%emt 0:00:44]} 25. Nf5 {[%emt 0:00:30]} b5 {[%emt 0:00:49]} 26. Nb2 {[%emt 0:00:31]} Qb7 {[%emt 0:08:17]} 27. h4 {[%emt 0:00:49]} h6 {[%emt 0:00:34]} 28. hxg5 {[%emt 0:00:34]} hxg5 {[%emt 0:00:03]} 29. Rh5 {[%emt 0:00:43]} a5 {[%emt 0:00:19]} 30. Qc1 {[%emt 0:01:22]} Bxf5 {[%emt 0:13:13]} 31. gxf5 {[%emt 0:00:17]} Bd6 {[%emt 0:00:02]} 32. Re2 {[%emt 0:00:35]} Qc7 {[%emt 0:03:00]} 33. Qh1 {[%emt 0:05:28]} Be5 {[%emt 0:00:26]} 34. Rc2 {[%emt 0:05:24]} Qe7 {[%emt 0:02:47]} 35. Rh6 {[%emt 0:00:22]} Rh8 {[%emt 0:01:28]} 36. Rc1 {[%emt 0:05:44]} Kc7 {[%emt 0:04:14]} 37. Rg1 {[%emt 0:06:12]} Rxh6 {[%emt 0:01:51]} 38. Qxh6 {[%emt 0:00:05]} Rh8 {[%emt 0:00:09]} 39. Qg6 {[%emt 0:00:10]} Bf6 {[%emt 0:00:29]} 40. Kb1 {[%emt 0:00:00]} Qf8 {[%emt 0:00:44]} 41. e5 {[%emt 0:03:26]} Rh6 {[%emt 0:00:42]} 42. exf6 {[%emt 0:00:16]} Rxg6 {[%emt 0:00:08]} 43. fxg6 {[%emt 0:00:03]} Qxf6 {[%emt 0:00:09]} 44. Rg4 {[%emt 0:01:26]} Qxg6 {[%emt 0:01:22]} 45. f4 {[%emt 0:00:18]} c4 {[%emt 0:02:41]} 46. bxc4 {[%emt 0:01:51]} bxc4 {[%emt 0:00:04]} 47. Rxg5 {[%emt 0:01:02]} Qh7 {[%emt 0:00:08]} 48. f5 {[%emt 0:02:37]} Qh1+ {[%emt 0:00:23]} 49. Kc2 {[%emt 0:00:09]} Qh2+ {[%emt 0:00:06]} 50. Kb1 {[%emt 0:00:46]} c3 {[%emt 0:00:43]} 51. Nc4 {[%emt 0:01:23]} c2+ {[%emt 0:00:49]} 52. Kb2 {[%emt 0:01:35]} c1=Q+ {[%emt 0:00:08]} 53. Kxc1 {[%emt 0:00:39]} Qf4+ {[%emt 0:00:05]} 0-1

[Event "73rd ARM-chW Highest League 2018"]
[Site "Yerevan"]
[Date "2018.01.20"]
[Round "9"]
[White "Galojan, Lilit"]
[Black "Kursova, Maria"]
[Result "1/2-1/2"]
[ECO "A04"]
[WhiteElo "2300"]
[BlackElo "2249"]
[Annotator "NA"]
[PlyCount "35"]
[EventDate "2018.??.??"]
[EventType "tourn"]
[EventCountry "ARM"]
[SourceTitle "playchess.com"]
[Source "ChessBase"]
[SourceQuality "1"]
[TimeControl "40/5400+30:1800+30"]

1. Nf3 {[%emt 0:00:45]} c5 {[%emt 0:00:31]} 2. e3 {[%emt 0:01:42]} Nf6 {[%emt 0:07:40]} 3. d4 {[%emt 0:07:04]} e6 {[%emt 0:06:49]} 4. Bd3 {[%emt 0:09:11]} d5 {[%emt 0:11:30] LiveBook: 1162 Games} 5. O-O $11 {[%emt 0:00:58]} Nc6 {[%emt 0:06:29]} 6. c3 {[%emt 0:10:11]} Be7 {[%emt 0:12:20]} 7. Nbd2 {[%emt 0:01:16]} Qc7 {[%emt 0:03:08]} 8. a3 {[%emt 0:22:55]} b6 {[%emt 0:03:54]} 9. b4 {[%emt 0:00:43]} O-O {[%emt 0:04:10]} 10. Bb2 {[%emt 0:04:20]} Bb7 {[%emt 0:07:26]} 11. Rc1 {[%emt 0:09:13]} c4 {[%emt 0:03:21]} 12. Bc2 {[%emt 0:04:16]} b5 {[%emt 0:01:38]} 13. a4 {[%emt 0:01:04]} a5 {[%emt 0:05:30]} 14. axb5 {[%emt 0:00:05]} Na7 {[%emt 0:00:08]} 15. bxa5 {[%emt 0:01:52]} Nxb5 {[%emt 0:00:12]} 16. Ra1 {[%emt 0:07:33]} Rxa5 {[%emt 0:00:59]} 17. Rxa5 {[%emt 0:00:03]} Qxa5 {[%emt 0:00:05]} 18. Qa1 {[%emt 0:01:06]} 1/2-1/2

[Event "73rd ARM-chW Highest League 2018"]
[Site "Yerevan"]
[Date "2018.01.20"]
[Round "9"]
[White "Sargsyan, Anna M."]
[Black "Arakelyan, Nare"]
[Result "0-1"]
[ECO "E68"]
[WhiteElo "2214"]
[BlackElo "1747"]
[Annotator "NA"]
[PlyCount "80"]
[EventDate "2018.??.??"]
[EventType "tourn"]
[EventCountry "ARM"]
[SourceTitle "playchess.com"]
[Source "ChessBase"]
[SourceQuality "1"]
[TimeControl "40/5400+30:1800+30"]

1. d4 {[%emt 0:00:00]} Nf6 {[%emt 0:00:08]} 2. Nf3 {[%emt 0:00:00]} g6 {[%emt 0:00:14]} 3. c4 {[%emt 0:00:00]} Bg7 {[%emt 0:00:11]} 4. g3 {[%emt 0:00:00]} O-O {[%emt 0:00:13]} 5. Bg2 {[%emt 0:00:00]} d6 {[%emt 0:00:11]} 6. Nc3 {[%emt 0:00:00]} Nbd7 {[%emt 0:00:16]} 7. O-O {[%emt 0:00:01] LiveBook: 7931 Games} e5 {[%emt 0:00:22]} 8. e4 {[%emt 0:00:04]} exd4 {[%emt 0:00:13]} 9. Nxd4 {[%emt 0:00:04]} Re8 {[%emt 0:00:04]} 10. h3 {[%emt 0:00:04]} a6 {[%emt 0:00:07]} 11. Be3 {[%emt 0:05:43]} Rb8 {[%emt 0:00:14]} 12. b3 {[%emt 0:00:23] E68: King's Indian: Fianchetto: 6...Nbd7 7 0-0 e5 8 e4} (12. a4 a5 13. Qc2 c6 14. Rad1 Qc7 15. f4 Nc5 16. g4 Bd7 17. f5 Rbc8 18. g5 Nfxe4 19. Bxe4 d5 20. Bf4 Qb6 21. f6 Bf8 {½-½ (55) Ding,L (2777)-Mamedyarov,S (2799) Huaian 2017}) 12... Qe7 {[%emt 0:01:56]} 13. Rc1 {[%emt 0:09:09]} c5 {[%emt 0:03:45]} 14. Nde2 {[%emt 0:00:05]} b5 {[%emt 0:00:50]} 15. Bf4 $146 {[%emt 0:00:34]} ({Predecessor:} 15. cxb5 axb5 16. Nf4 b4 17. Ncd5 Qd8 18. Qc2 Nxd5 19. Nxd5 Nb6 20. Nxb6 Rxb6 {½-½ (116) Mikaelyan,A (2448)-Nenezic,M (2469) Yerevan 2015}) 15... Rb6 {[%emt 0:06:16]} 16. g4 {[%emt 0:14:50]} h6 {[%emt 0:18:00]} 17. Ng3 {[%emt 0:00:51]} Ne5 $16 {[%emt 0:01:11]} 18. g5 {[%emt 0:21:17]} hxg5 {[%emt 0:07:04]} 19. Bxg5 {[%emt 0:00:05]} Rb7 {[%emt 0:12:50]} 20. Nd5 {[%emt 0:10:51]} Qe6 {[%emt 0:01:10]} 21. f4 {[%emt 0:00:12]} Nh7 {[%emt 0:03:35]} 22. f5 {[%emt 0:01:48]} Qd7 {[%emt 0:03:01]} 23. Be3 {[%emt 0:01:25]} bxc4 {[%emt 0:04:30]} 24. bxc4 {[%emt 0:00:08]} Rb2 {[%emt 0:01:44]} 25. Rc2 {[%emt 0:03:14]} Qb7 {[%emt 0:04:11]} 26. Qe2 {[%emt 0:08:57]} Rb1 {[%emt 0:02:55]} 27. Rxb1 {[%emt 0:03:55]} Qxb1+ {[%emt 0:01:13]} 28. Rc1 {[%emt 0:00:00]} Qd3 {[%emt 0:01:31]} 29. Qf2 {[%emt 0:00:56]} Bb7 {[%emt 0:04:44]} 30. Nf4 {[%emt 0:03:54]} Qa3 {[%emt 0:03:12]} 31. Bf1 {[%emt 0:00:14]} Ng5 {[%emt 0:01:41]} 32. Bg2 {[%emt 0:02:33]} Bc6 {[%emt 0:11:58]} 33. Nfe2 {[%emt 0:06:56]} Nd3 {[%emt 0:01:01]} 34. Qf1 {[%emt 0:00:01]} Nxe4 {[%emt 0:01:00]} 35. Rb1 {[%emt 0:02:43]} Nxg3 {[%emt 0:00:29]} 36. Nxg3 {[%emt 0:00:02]} Bxg2 {[%emt 0:00:20]} 37. Qxg2 {[%emt 0:00:06]} Rxe3 {[%emt 0:00:12]} 38. Rb8+ {[%emt 0:01:05]} Kh7 {[%emt 0:00:17]} 39. fxg6+ {[%emt 0:00:45]} fxg6 {[%emt 0:00:07]} 40. Rb7 {[%emt 0:00:00]} Nf4 {[%emt 0:01:19]} 0-1